{"text_format":"1","workbook":"xlsx","n_sheets":7,"sheets":["Pollinator Plants","MLRA Utah","Crop Flower Period","Pollinators by Crop","Pollinator Syndromes","Sample Seed Mix","Seed Vendors"],"not_rendered":{"charts":0,"images":8,"macros":0,"external_links":0,"defined_names":3,"comments":0,"pivot_tables":0},"unopened":[],"bounds":{"document_bytes":16777216,"sheet_cells":100000,"rows_first":2000,"rows_last":500,"rows_between":2000,"halvings":0,"cell_chars":16384,"cell_head_chars":4096},"cells_cut":0,"cells_raw":0,"read":"whole","date_system":"1900"}

{"sheet":"Pollinator Plants","index":0,"n_rows":123,"n_cols":36,"rows_kept":123,"cut":false,"hidden":false,"merged":[[83,0,83,21],[3,20,3,21],[3,11,3,19],[0,0,0,21],[3,0,3,1],[3,3,3,5],[3,6,3,8],[1,0,1,21]]}
["Plants for Pollinators - NRCS Utah - 2014"]
["Potential pollinator plant species to be seeded or planted for pollinator enhancement or to be maintained on the landscape through proper grazing and management."]
[]
["Plant Name",null,null,"Bloom Period",null,null,null,null,null,null,null,"Native MLRA                                               http://earth.gis.usu.edu/plants/#sciC",null,null,null,null,null,null,null,null,"Elevation Range (ft)"]
["Common Name","Scientific Name","Flower Color","Early","Mid","Late","Life Span","Moisture Needs       (min. inches)","Single Species lb./ac.","Approx.        $ per lb. ","Planting Method","D25","D28","D29","D30","D34","D35","D36","E47","E48","Low","High"]
["Native Forbs"]
["Snowball sand verbena","Abronia fragrans","w","X","X","X","Short",10,6,85,"S",null,"x","x","x","x","x","x",null,null,{"$f":"AI7*3.28","v":2755.2},{"$f":"AJ7*3.28","v":8462.4},null,null,null,null,null,null,null,null,null,null,null,null,840,2580]
["Western yarrow","Achillea millefolium - occidentalis","w","X","X","X","Mid",10,2,8.5,"S","x","x","x",null,null,null,"x","x","x",2656.7999999999997,8954.4,null,null,null,null,null,null,null,null,null,null,null,null,810,2730]
["Colorado blue columbine","Aquilegia caerulea",null,null,"X",null,"Short",25,3,100,"S","x",null,"x",null,null,null,null,"x","x",3968.7999999999997,10332,null,null,null,null,null,null,null,null,null,null,null,null,1210,3150]
["Prickly poppy","Argemone munita","w","X","X",null,"Long",10,4,45,"S",null,"x","x","x",null,"sw",null,"x",null,4362.3999999999996,7150.4,null,null,null,null,null,null,null,null,null,null,null,null,1330,2180]
["Showy milkweed","Asclepias speciosa",null,"X","X",null,"Annual",16,15,"Ukn","S",null,"x",null,null,"x","x","x","v","v",4362.3999999999996,8265.6,null,null,null,null,null,null,null,null,null,null,null,null,1330,2520]
["Butterflyweed","Asclepias tuberosa",null,null,"X",null,"Mid",28,15,145,"S",null,null,null,null,null,"x","x",null,null,2755.2,11152,null,null,null,null,null,null,null,null,null,null,null,null,840,3400]
["Woolly locoweed","Astragalus mollissimus",null,"X","X",null,"Mid",12,10,"Unk","S",null,"x",null,null,"x","x","x","x","x",2624,8954.4,null,null,null,null,null,null,null,null,null,null,null,null,800,2730]
["Cutleaf balsamroot","Balsamorhiza macrophylla",null,"X","X",null,"Mid",14,18,60,"S",null,null,null,null,null,null,null,"n",null,6756.7999999999993,10758.4,null,null,null,null,null,null,null,null,null,null,null,null,2060,3280]
["Arrowleaf balsamroot","Balsamorhiza sagittata",null,"X","X",null,"Long",14,18,50,"S","x",null,"x",null,null,null,null,"x","x",3181.6,6560,null,null,null,null,null,null,null,null,null,null,null,null,970,2000]
["Indian paintbrush","Castilleja chromosa",null,"X","X",null,"Mid",8,1,160,"T","x","x","x","x","x","x","x","x","x",5936.7999999999993,10955.199999999999,null,null,null,null,null,null,null,null,null,null,null,null,1810,3340]
["Douglas dustymaidens","Chaenactis douglasii",null,null,"X",null,"Short",10,3,"N/A","S","x","m","x",null,"x",null,null,"x","x",2984.7999999999997,7970.4,null,null,null,null,null,null,null,null,null,null,null,null,910,2430]
["Yellow beeplant","Cleome lutea",null,null,"X",null,"Annual",8,11,125,"S",null,"x","x","x","x","x","x",null,null,4952.7999999999993,9348,null,null,null,null,null,null,null,null,null,null,null,null,1510,2850]
["Rocky Mountain beeplant","Cleome serrulata",null,null,"X","X","Annual",13,17,17,"S",null,"x","x","x","x","x","x","x",null,3181.6,5477.5999999999995,null,null,null,null,null,null,null,null,null,null,null,null,970,1670]
["White prairieclover","Dalea candida var. oligophylla","w",null,"X",null,"Mid",10,4,50,"S",null,null,null,null,"s","x","x",null,null,{"$f":"AI21*3.28","v":4165.5999999999995},{"$f":"AJ21*3.28","v":11644},null,null,null,null,null,null,null,null,null,null,null,null,1060,2280]
["Aspen fleabane","Erigeron speciosus",null,null,"X","X","Ukn",18,1,6,"S","x",null,null,null,null,null,null,"x","x",2984.7999999999997,6953.5999999999995,null,null,null,null,null,null,null,null,null,null,null,null,1270,3550]
["Common blanketflower","Gaillardia aristata",null,null,"X","X","Mid",16,6,15,"S",null,null,null,null,null,null,null,"n",null,4067.2,9052.7999999999993,null,null,null,null,null,null,null,null,null,null,null,null,910,2120]
["American licorice","Glycyrrhiza lepidota","w","X","X",null,"Mid",14,1,24,"S",null,"x",null,"x","x","x","x","x",null,3968.7999999999997,8954.4,null,null,null,null,null,null,null,null,null,null,null,null,1240,2760]
["Utah sweetvetch","Hedysarum boreale",null,"X","X",null,"Long",12,24,60,"S",null,null,null,null,"x","x",null,"x","x",4460.8,8167.2,null,null,null,null,null,null,null,null,null,null,null,null,1210,2730]
["Annual or Tall sunflower","Helianthus annuus",null,null,"X","X","Annual",8,4,16,"S",null,null,"x",null,"x","x",null,"x","x",4952.7999999999993,10824,null,null,null,null,null,null,null,null,null,null,null,null,1360,2490]
["Prairie sunflower","Helianthus petiolaris ssp. fallax",null,"X","X","X","Annual",12,4,"Unk","S",null,null,"x","x","x","x","x",null,null,3280,5280.7999999999993,null,null,null,null,null,null,null,null,null,null,null,null,1510,3300]
["Scarlet gillia","Ipomopsis aggregata",null,null,"X",null,"Short",13,3,125,"S","x","m","x",null,"x","x","x","x","x",5444.7999999999993,11939.199999999999,null,null,null,null,null,null,null,null,null,null,null,null,1000,1610]
["Blueflag iris","Iris missouriensis",null,"X","X",null,"Long",24,54,"N/A","T","x",null,null,null,null,null,null,"x","x",2755.2,6461.5999999999995,null,null,null,null,null,null,null,null,null,null,null,null,1660,3640]
["Lewis flax","Linum lewisii",null,null,null,null,"Mid",10,4,20,"S","x","x","x",null,"x","x","x","x","x",2558.3999999999996,7970.4,null,null,null,null,null,null,null,null,null,null,null,null,840,1970]
["Cardinal flower","Lobelia cardinalis",null,"X","X","X","Long",28,0.2,250,"S",null,null,null,"x",null,"x",null,null,null,3280,10922.4,null,null,null,null,null,null,null,null,null,null,null,null,780,2430]
["Silver lupine","Lupinus argenteus",null,"X","x",null,"Short",10,70,70,"S","x","m","x",null,null,"x","x","x","x",5444.7999999999993,9446.4,null,null,null,null,null,null,null,null,null,null,null,null,1000,3330]
["Hoary tansyaster","Machaeranthera canescens",null,null,"X","X","Ukn",16,3,"Ukn","S",null,"m","x","x","x","x","x","x","x",3968.7999999999997,9446.4,null,null,null,null,null,null,null,null,null,null,null,null,1660,2880]
["Tahoka daisy","Machaeranthera tanacetifolia",null,"X","X",null,"Short",16,3,50,"S",null,null,null,null,null,"x",null,null,null,6461.5999999999995,10955.199999999999,null,null,null,null,null,null,null,null,null,null,null,null,1210,2880]
["Smoothstem blazingstar","Mentzelia laevicaulis",null,null,"X",null,"Biennial",7,10,30,"S",null,"x","x","x",null,"sw",null,"v",null,4362.3999999999996,11447.199999999999,null,null,null,null,null,null,null,null,null,null,null,null,1970,3340]
["Beebalm","Monardella odoratissima ssp. glauca",null,"X","X","X","Mid",20,3,"Ukn","S","x","m","x",null,null,null,null,"x","x",2558.3999999999996,6953.5999999999995,null,null,null,null,null,null,null,null,null,null,null,null,1330,3490]
["Purple locoweed","Oxytropis lambertii",null,"X",null,null,"Mid",16,8,65,"S",null,null,null,null,null,"x","x","x",null,4559.2,9938.4,null,null,null,null,null,null,null,null,null,null,null,null,780,2120]
["Narrowleafed penstemon","Penstemon angustifolia",null,"X","X",null,"Short",10,4,65,"S",null,"s",null,null,"x","x","x",null,null,4460.8,10430.4,null,null,null,null,null,null,null,null,null,null,null,null,1390,3030]
["Wasatch penstemon","Penstemon cyananthus",null,"X","X",null,"Long",12,3,55,"S","x",null,null,null,null,null,null,"x","x",4952.7999999999993,10922.4,null,null,null,null,null,null,null,null,null,null,null,null,1360,3180]
["Firecracker penstemon","Penstemon eatonii",null,"X","X",null,"Long",10,4,72,"S",null,"x","x","x","s","x","x","x","x",2853.6,8101.5999999999995,null,null,null,null,null,null,null,null,null,null,null,null,1510,3330]
["Palmer penstemon","Penstemon palmeri",null,null,null,null,"Short",8,3,28,"S",null,"s","x","x",null,"x",null,null,null,3476.7999999999997,9938.4,null,null,null,null,null,null,null,null,null,null,null,null,870,2470]
["Rocky Mountain penstemon","Penstemon strictus",null,"X","X",null,"Long",14,2,48,"S",null,null,null,null,null,null,"x","x","x",3575.2,5576,null,null,null,null,null,null,null,null,null,null,null,null,1060,3030]
["Scorpionweed","Phacelia crenulata ",null,"X","X",null,"Annual",8,2,18,"S",null,"s",null,"x","x","x","x",null,null,3935.9999999999995,7478.4,null,null,null,null,null,null,null,null,null,null,null,null,1090,1700]
["Silverleaf phacelia","Phacelia hastata","w","X","X",null,"Mid",10,2,"N/A","S","x",null,null,null,null,null,null,"x","x",2624,7937.5999999999995,null,null,null,null,null,null,null,null,null,null,null,null,1200,2280]
["Mexican hat","Ratibida columnifera",null,null,"X",null,"Mid",10,3,20,"S",null,null,null,null,null,"x","x",null,null,4460.8,7544,null,null,null,null,null,null,null,null,null,null,null,null,800,2420]
["Canada goldenrod","Solidago canadensis",null,null,null,"X","Long",16,0.5,"Ukn","S",null,null,"x",null,null,"x","x","x","x",3181.6,6560,null,null,null,null,null,null,null,null,null,null,null,null,1360,2300]
["Scarlet globemallow","Sphaeralcea coccinea",null,"X","X",null,"Short",6,3,115,"S",null,"x",null,null,"x","x","x","x","x",4362.3999999999996,5772.7999999999993,null,null,null,null,null,null,null,null,null,null,null,null,970,2000]
["Gooseberryleaf globemallow","Sphaeralcea grossulariifolia",null,"X","X",null,"Mid",8,3,85,"S",null,"x","x","x","x","x","x","v",null,2984.7999999999997,8003.2,null,null,null,null,null,null,null,null,null,null,null,null,1330,1760]
["Western aster","Symphyotrichum ascendens",null,null,"X","X","Ukn",14,1,"Ukn","S","x","x","x","x","x","x","x","x","x",2755.2,8068.7999999999993,null,null,null,null,null,null,null,null,null,null,null,null,910,2440]
["American vetch","Vicia americana",null,"X","X",null,"Mid",10,20,5,"S",null,null,"x",null,null,null,"x","x","x",2492.7999999999997,10430.4,null,null,null,null,null,null,null,null,null,null,null,null,840,2460]
["Native Shrubs and Trees",null,null,null,null,null,null,null,"Spacing",null,null,"D25","D28","D29","D30","D34","D35","D36","E47","E48",null,null,null,null,null,null,null,null,null,null,null,null,null,null,760,3180]
["Saskatoon serviceberry","Amelanchier alnifolia","w","X","X",null,"Long",12,7.5,65,"C/S","x","m","x",null,null,null,null,"x","x",{"$f":"AI52*3.28","v":4493.5999999999995},{"$f":"AJ52*3.28","v":9151.1999999999989}]
["Utah serviceberry","Amerlanchier utahensis",null,null,null,null,"Ukn",12,7.5,"Container","C","x","m","x","x","x","x","x","x","x",2689.6,8429.6,null,null,null,null,null,null,null,null,null,null,null,null,1370,2790]
["Mulefat or Seepwillow","Baccharis salicifolia","w","X",null,null,"Short","12^",5,20,"P/S",null,null,null,"x",null,null,"sw",null,null,3968.7999999999997,8954.4,null,null,null,null,null,null,null,null,null,null,null,null,820,2570]
["Desert ceanothus","Ceanothus greggii","w","X","X",null,"Mid",12,4,20,"C/S",null,null,"x","x",null,"x",null,null,null,4362.3999999999996,7478.4,null,null,null,null,null,null,null,null,null,null,null,null,1210,2730]
["Snowbrush ceanothus","Ceanothus velutinus","w","X","X",null,"Ukn",16,3,"Container","C","x",null,null,null,null,null,null,"n","n",4460.8,9938.4,null,null,null,null,null,null,null,null,null,null,null,null,1330,2280]
["Desert sweet","Chamaebatiaria millefolium","w",null,"X","X","Mid",15,10,20,"C/S",null,"x","x",null,null,"sw",null,"s",null,2755.2,8462.4,null,null,null,null,null,null,null,null,null,null,null,null,1360,3030]
["Desert willow","Chilopsis linearis",null,null,null,null,"Long","10^",10,"Container","C",null,null,"x","x",null,null,null,null,null,2755.2,3804.7999999999997,null,null,null,null,null,null,null,null,null,null,null,null,840,2580]
["Green rabbitbrush","Chysothamnus viscidiflorus",null,null,null,null,"Ukn",7,2.5,"Container","C",null,"x","x","x","x","x","x","x","x",4001.6,8659.1999999999989,null,null,null,null,null,null,null,null,null,null,null,null,840,1160]
["Shrubby cinquefoil","Dasiphora fruticosa",null,null,null,null,"Ukn",18,5,"Container","C","x",null,null,null,null,null,null,"x","x",3968.7999999999997,9446.4,null,null,null,null,null,null,null,null,null,null,null,null,1220,2640]
["Rubber rabbitbrush","Ericameria (Chysothamnus) nauseosus",null,null,"X","X","Mid",7,4,"Container","C","x","x","x","x","x","x","x","x","x",2755.2,6363.2,null,null,null,null,null,null,null,null,null,null,null,null,1210,2880]
["Whorled buckwheat","Eriogonum heracleoides","w",null,"X","X","Ukn",12,2,"Container","C","x",null,null,null,null,null,null,"n","n",2755.2,10922.4,null,null,null,null,null,null,null,null,null,null,null,null,840,1940]
["Sulphur-flower buckwheat","Eriogonum umbellatum",null,null,"X","X","Long",12,2,10,"C/S","x","m","x",null,null,"m","x","x","x",6166.4,11742.4,null,null,null,null,null,null,null,null,null,null,null,null,840,3330]
["Apache plume","Fallugia paradoxa","w","X","X",null,"Ukn",8,5,"Container","C",null,null,"x","x",null,"x",null,null,null,2788,4985.5999999999995,null,null,null,null,null,null,null,null,null,null,null,null,1880,3580]
["Stretchberry","Forestiera pubescens",null,null,null,null,"Ukn","9^",5,"Container","C",null,null,null,null,null,null,null,null,null,4460.8,11939.199999999999,null,null,null,null,null,null,null,null,null,null,null,null,850,1520]
["Mountain spray","Holodiscus dumosus","w",null,"X","X","Mid",10,6,"Container","C","x","x","x",null,null,"x","x","x","x",3378.3999999999996,10135.199999999999,null,null,null,null,null,null,null,null,null,null,null,null,1360,3640]
["Creosote bush","Larrea tridentata",null,"X",null,null,"Long",5,5,12,"C/S",null,null,null,"x",null,null,null,null,null,2788,9938.4,null,null,null,null,null,null,null,null,null,null,null,null,1030,3090]
["Prickly pear","Opuntia spp.",null,null,null,null,"Ukn",8,4,"Container","P",null,"x","x","x","x","x","x","x",null,3968.7999999999997,10922.4,null,null,null,null,null,null,null,null,null,null,null,null,850,3030]
["Littleleaf mockorange","Philadelphus microphyllus",null,"X",null,null,"Mid",12,6,10,"C/S",null,"m",null,null,"x",null,null,"x","x",2984.7999999999997,6953.5999999999995,null,null,null,null,null,null,null,null,null,null,null,null,1210,3330]
["Frosted mint","Poliomintha incana",null,null,"X",null,"Long",8,2,"Container","C",null,null,null,null,null,"x","x",null,null,2492.7999999999997,4395.2,null,null,null,null,null,null,null,null,null,null,null,null,910,2120]
["Shrubby cinquefoil","Potentilla fruticosa",null,"X","X",null,"Long",8,5,30,"C/S","x",null,null,null,null,null,null,"x","x",2492.7999999999997,9840,null,null,null,null,null,null,null,null,null,null,null,null,760,1340]
["Chokecherry","Prunus virginiana","w","X",null,null,"Long",14,10,12,"C/S","x","m","x",null,null,null,"x","x","x",3083.2,5871.2,null,null,null,null,null,null,null,null,null,null,null,null,760,3000]
["Mexican cliffrose","Purshia mexicana",null,"X","X",null,"Ukn",6,7.5,"Container","C",null,"x","x","x","x","x","x","x",null,2656.7999999999997,7150.4,null,null,null,null,null,null,null,null,null,null,null,null,940,1790]
["Antelope bitterbrush","Purshia tridentata",null,"X","X",null,"Long",10,5,50,"C/S","x","x","x","x","x","x","x","x","x",6166.4,11742.4,null,null,null,null,null,null,null,null,null,null,null,null,810,2180]
["Skunkbush sumac","Rhus trilobata",null,"X","X",null,"Mid",10,5,30,"C/S","x","x","x","x","x","x","x","x","x",2656.7999999999997,4920,null,null,null,null,null,null,null,null,null,null,null,null,1880,3580]
["Golden currant","Ribes aureum",null,"X",null,null,"Long",12,5,"Container","C","x","m","x",null,"n",null,null,"x","x",3181.6,8954.4,null,null,null,null,null,null,null,null,null,null,null,null,810,1500]
["New Mexico locust","Robinia neomexicana",null,"X","X",null,"Ukn",12,7.5,"Container","C",null,null,"x","x",null,"sw",null,null,null,5936.7999999999993,10955.199999999999,null,null,null,null,null,null,null,null,null,null,null,null,970,2730]
["Woods' rose","Rosa woodsii",null,"X","X",null,"Long",12,4,10,"C/S","x","x","x","x","x","x","x","x","x",4952.7999999999993,8954.4,null,null,null,null,null,null,null,null,null,null,null,null,1810,3340]
["Bebb's willow","Salix bebbiana",null,"X",null,null,"Mid","20^",7.5,30,"P/S",null,null,"x",null,null,null,null,"x","x",5936.7999999999993,9446.4,null,null,null,null,null,null,null,null,null,null,null,null,1510,2730]
["Coyote willow","Salix exigua",null,"X",null,null,"Ukn","20^",4,"Container","P","x","x","x","x","x","x","x","x","x",4264,10725.599999999999,null,null,null,null,null,null,null,null,null,null,null,null,1810,2880]
["Purple sage","Salvia dorrii",null,"X","X",null,"Short",8,2.5,20,"C/S",null,"s","x","x",null,"sw",null,null,null,2558.3999999999996,6953.5999999999995,null,null,null,null,null,null,null,null,null,null,null,null,1300,3270]
["Black / Blue elderberry","Sambucus nigra","w","X","X",null,"Ukn",20,8,"Container","C",null,"m","x",null,null,"m","x","x","x",2984.7999999999997,4493.5999999999995,null,null,null,null,null,null,null,null,null,null,null,null,780,2120]
["Red elderberry","Sambucus racemosa","w","X","X",null,"Ukn",24,8,"Container","C",null,"m",null,null,null,null,null,"x","x",4165.5999999999995,5969.5999999999995,null,null,null,null,null,null,null,null,null,null,null,null,910,1370]
["Silver buffaloberry","Sheperdia argentea",null,"X",null,null,"Mid",12,8,60,"C/S",null,"x",null,null,"x","x",null,"x",null,4952.7999999999993,9446.4,null,null,null,null,null,null,null,null,null,null,null,null,1270,1820]
["Other native flowering plant species with evidence of successful establishment may be added, particularly native congeners of species on this list.  Native bunchgrasses can be added to a seed mix (<15% PLS /ft2) as cover for bumblebees.",null,null,null,null,null,null,null,null,null,null,null,null,null,null,null,null,null,null,null,null,null,null,null,null,null,null,null,null,null,null,null,null,null,1510,2880]
[]
["Bloom Period Key","Spring = April 1 - June 15",null,null,null,null,null,"Spring Bloom",null,null,"Bloom Ending in Summer"]
[null,"Summer = June 15 - August 1",null,null,null,null,null,"Late Spring Bloom",null,null,"Fall Bloom"]
[null,"Fall = August 1 - October 31",null,null,null,null,null,"Summer Bloom",null,null,"Bloom Ending in Early Fall"]
[]
["Introduced Forbs"]
["Cicer milkvetch","Astragalus cicer",null,null,"X",null,"Long",12,25,4]
["Purple coneflower*","Echinacea purpurea",null,null,"X","X","Mid",12,4,19]
["California poppy*","Eschscholzia californica",null,"X","X",null,"Short",8,3,16]
["Blue flax","Linum perenne",null,"X","X",null,"Mid",10,4,20]
["Birdsfoot trefoil","Lotus corniculatus",null,null,"X",null,"Long",18,4,3.5]
["Ladak alfalfa","Medicago sativa",null,null,"X","X","Long",8,8,2.5]
["Falcata alfalfa","Medicago sativa spp. falcata",null,"X","X",null,"Long",10,7,7.5]
["Sainfoin","Onobrychis viciifolia",null,"X","X",null,"Short",14,34,2.25]
["Black-eyed susan*","Rudbeckia hirta - pulcherrina",null,null,"X",null,"Mid",14,3,14]
["Strawberry clover","Trifolium fragiferum",null,null,"X","X","Short",20,4,5.5]
["Rose clover","Trifolium hirtum",null,null,"X","X","Annual",10,20,3]
["Alsike clover","Trifolium hybridum",null,"X","X",null,"Short",25,3,1.5]
["Red clover","Trifolium pratense",null,null,"X","X","Short",35,8,2]
["Ladino clover","Trifolium repens","w","X","X",null,"Short",35,2,3.4]
["* - primarily an introduced species in Utah.  Native range is very limited."]
[]
[]
["Recommended Websites for Further Plant Information",null,null,null,null,null,null,"Planting Key",null,null,"MLRA Key "]
["Digital Plant Atlas","http://earth.gis.usu.edu/plants/#commonR",null,null,null,null,null,"C - Container",null,null,"x","Broadly distributed"]
["USDA PLANTS","http://plants.usda.gov/java/",null,null,null,null,null,"P - Pole or Cutting",null,null,"n","Northern portion"]
["FEIS USFS","http://www.fs.fed.us/database/feis/plants/",null,null,null,null,null,"T - Transplant",null,null,"s","Southern prstion"]
["USU Range Plants of Utah","http://extension.usu.edu/rangeplants/",null,null,null,null,null,"S - Seed",null,null,"sw","Southwestern portion"]
["SW CO Wildflowers","http://www.swcoloradowildflowers.com/index.htm",null,null,null,null,null,"Moisture Key",null,null,"m","Mountains within this MLRA"]
["Lady Bird Johnson Wildflower Center","http://www.wildflower.org/plants/",null,null,null,null,null,"^ - Riparian",null,null,"v","Valleys within this MLRA"]
["Native Seed Network","http://www.nativeseednetwork.org/ecomap?state=UT"]
[]
[]
[]
[]
[]
[]
[]
["Sept 2014"]

{"sheet":"MLRA Utah","index":1,"n_rows":0,"n_cols":0,"rows_kept":0,"cut":false,"hidden":false,"merged":[]}

{"sheet":"Crop Flower Period","index":2,"n_rows":35,"n_cols":10,"rows_kept":35,"cut":false,"hidden":false,"merged":[]}
["Crop Flowering Period"]
[]
[null,"BLOOM PERIOD^"]
["PLANT","D25","D28A","D29","D30","D34A","D34B","D35","D36","E47"]
["Tart Cherry","Late May","May","Late May","April","June","May","Late Apr","May","June"]
["Sweet Cherry","Late May","May","Late May","April","June","May","Late Apr","May","June"]
["Peach","Late May","May","Late May","April","June","May","Late Apr","May","June"]
["Apricot","Late May","May","Late May","April","June","May","Late Apr","May","June"]
["Plum","Late May","May","Late May","April","June","May","Late Apr","May","June"]
["Pear","Late May","May","Late May","April","June","May","Late Apr","May","June"]
["Apple","Late May","May","Late May","April","June","May","Late Apr","May","June"]
["Pistachio","n/a","n/a","n/a","April","n/a","n/a","n/a","n/a","n/a"]
["Pecan","n/a","n/a","n/a","April","n/a","n/a","n/a","n/a","n/a"]
["Grape","Late May","May","Late May","April","June","May","Late Apr","May","June"]
[]
["Melons","late July->","mid July->","late July->","mid Jun->","late July->","mid July->","early Jul->","late July->","late July->"]
["Watermelon","late July->","mid July->","late July->","mid Jun->","late July->","mid July->","early Jul->","late July->","late July->"]
["Winter Squash ","late July->","mid July->","late July->","mid Jun->","late July->","mid July->","early Jul->","late July->","late July->"]
["Pumpkin","late July->","mid July->","late July->","mid Jun->","late July->","mid July->","early Jul->","late July->","late July->"]
["Zucchini","late July->","mid July->","late July->","mid Jun->","late July->","mid July->","early Jul->","late July->","late July->"]
[]
["Raspberry","Late May","May","Late May","April","June","May","Late Apr","May","June"]
["Blackberry","Late May","May","Late May","April","June","May","Late Apr","May","June"]
["Strawberry","Late May","May","Late May","April","June","May","Late Apr","May","June"]
[]
["Tomato","late July->","mid July->","late July->","mid Jun->","late July->","mid July->","early Jul->","mid Jun->","late July->"]
[]
["Hay Alfalfa*","mid Jun->","early Jun->","mid Jun->","mid Jun->","late June->","early Jun->","early Jul->","mid Jun->","late June->"]
["Seed Alfalfa","mid Jun->","early Jun->","mid Jun->","mid Jun->","late June->","early Jun->","early Jul->","mid Jun->","late June->"]
[]
[null,"^ - Bloom period can vary by year, by variety, and within a MLRA by a few weeks."]
[null,"* - Hay alfalfa does not require pollination, but may be a floral resource for pollinators."]
[null,"Arrows indicate that flowering is ongoing after this period."]
[]
["More info on MLRA characteristics: http://www.nrcs.usda.gov/Internet/FSE_DOCUMENTS/nrcs141p2_033620.pdf"]

{"sheet":"Pollinators by Crop","index":3,"n_rows":49,"n_cols":1,"rows_kept":49,"cut":false,"hidden":false,"merged":[]}
[]
[]
[]
[]
[]
[]
[]
[]
[]
[]
[]
[]
[]
[]
[]
[]
[]
[]
[]
[]
[]
[]
[]
[]
[]
[]
[]
[]
[]
[]
[]
[]
[]
[]
[]
[]
[]
[]
[]
[]
[]
[]
[]
[]
[]
[]
[]
[]
["From:"]

{"sheet":"Pollinator Syndromes","index":4,"n_rows":0,"n_cols":0,"rows_kept":0,"cut":false,"hidden":false,"merged":[]}

{"sheet":"Sample Seed Mix","index":5,"n_rows":49,"n_cols":18,"rows_kept":49,"cut":false,"hidden":false,"merged":[]}
["Pollinator Planting Sample Seed Mixes"]
["Common Name","Scientific","Utah Native","Flower Spring","Flower Summer","Flower Fall","Color","Life Span","Moisture Needs","Life Form","Approx. Cost / lb.  (2014 Est.)","PLS  (variable)","Seed / lb","Recommended        lb / ac","Seed / ac","Seed / sq. ft.","PLS / sq. ft. ","Seed cost / ac"]
["Central Utah Mix (10\"-14\" precipitation)"]
["Lewis Flax","Linum lewisii","X","X","X",null,"Lt. Blue","Mid",10,"P",20,0.81,286000,1.5,{"$f":"N4*M4","v":429000},{"$f":"O4/43560","v":9.8484848484848477},{"$f":"P4*L4","v":7.9772727272727275},{"$f":"K4*N4","v":30}]
["Palmer Penstemon","Penstemon palmeri","X","X","X",null,"Pink","Long",10,"P",28,0.76,600000,0.5,300000,6.887052341597796,{"$f":"P5*L5","v":5.2341597796143251},14]
["Firecracker Penstemon","Penstemon eatonii","X","X","X",null,"Red","Long",10,"P",72,0.76,600000,0.25,150000,3.443526170798898,{"$f":"P6*L6","v":2.6170798898071626},18]
["Rocky Mtn Beeplant","Cleome serrulata","X",null,"X","X","Pink","Annual",10,"A",20,0.81,66000,2,132000,3.0303030303030303,2.4545454545454546,40]
["Scarlet Gilia","Ipomopsis aggregata","X",null,"X",null,"Red","Mid",10,"P",125,0.88,200000,0.25,50000,1.1478420569329659,1.0101010101010099,31.25]
["Western Yarrow","Achillea millefolium occidentalis","X","X","X","X","White","Mid",10,"P",22,0.83,4124000,0.1,412400,9.4674012855831045,7.8579430670339763,2.2000000000000002]
["Common Sunflower","Helianthus annuus","X",null,"X","X","Yellow","Annual",10,"A",16,0.64,60000,2,{"$f":"N10*M10","v":120000},{"$f":"O10/43560","v":2.7548209366391183},{"$f":"P10*L10","v":1.7630853994490359},{"$f":"K10*N10","v":32}]
["Alfalfa (Ladak)","Medicago sativa",null,"X","X","X","Purple","Long",8,"P",2.25,0.83,225000,1,{"$f":"N11*M11","v":225000},{"$f":"O11/43560","v":5.1652892561983474},4.2871900826446279,{"$f":"K11*N11","v":2.25}]
["Gooseberry-leaf Globemallow","Sphaeralcea grossulariifolia ","X","X","X",null,"Orange","Mid",8,"P",75,0.91,335000,0.25,{"$f":"N12*M12","v":83750},{"$f":"O12/43560","v":1.9226354453627181},1.7495982552800735,{"$f":"K12*N12","v":18.75}]
["Rubber Rabbitbrush","Chrysothamnus nauseosus","X",null,"X","X","Yellow","Mid",10,"P",35,0.12,756000,0.75,{"$f":"N13*M13","v":567000},{"$f":"O13/43560","v":13.016528925619834},{"$f":"P13*L13","v":1.5619834710743801},{"$f":"K13*N13","v":26.25}]
["Bottlebrush Squirreltail","Elymus elymoides","X","n/a","n/a","n/a","grass","Short",8,"P",20,0.72,192000,0.5,96000,2.2038567493112948,{"$f":"P14*L14","v":1.5867768595041323},10]
["Bluebunch Wheatgrass","Pseudoroegneria spicata","X","n/a","n/a","n/a","grass","Long",8,"P",6,0.77,126000,1.5,189000,4.338842975206612,{"$f":"P15*L15","v":3.3409090909090913},9]
[null,null,null,null,null,null,null,null,null,null,null,null,null,{"$f":"SUM(N4:N15)","v":10.6},2754150,63.226584022038566,41.440645087236,{"$f":"SUM(R4:R15)","v":233.7}]
[]
["SE Utah Mix (10\"-14\" precipitation)"]
["Scorpionweed","Phacelia crenulata","X","X","X",null,"Purple","Annual",8,"A",18,0.8,800000,0.75,{"$f":"N19*M19","v":600000},{"$f":"O19/43560","v":13.774104683195592},{"$f":"P19*L19","v":11.019283746556475},{"$f":"K19*N19","v":13.5}]
["Lewis Flax","Linum lewisii","X","X","X",null,"Lt. Blue","Mid",10,"P",20,0.81,286000,0.5,143000,3.2828282828282829,{"$f":"P20*L20","v":2.6590909090909092},10]
["Firecracker Penstemon","Penstemon eatonii","X","X","X",null,"Red","Long",10,"P",72,0.76,600000,0.25,150000,3.443526170798898,{"$f":"P21*L21","v":2.6170798898071626},18]
["Rocky Mtn Penstemon","Penstemon strictus","X","X","X",null,"Purple","Long",14,"P",48,0.8,478000,0.5,239000,5.4866850321395777,{"$f":"P22*L22","v":4.3893480257116622},24]
["White Prairieclover","Dalea candida","X",null,"X",null,"White","Mid",12,"P",50,0.8,160000,1,160000,3.6730945821854912,{"$f":"P23*L23","v":2.9384756657483933},50]
["Rocky Mountain Beeplant","Cleome serrulata","X",null,"X","X","Purple","Annual",13,"A",17,0.81,66000,2,132000,3.0303030303030303,{"$f":"P24*L24","v":2.4545454545454546},34]
["Western Yarrow","Achillea millefolium occidentalis","X","X","X","X","White","Mid",10,"P",8.5,0.83,4124000,0.05,206200,{"$f":"O25/43560","v":4.7337006427915522},{"$f":"P25*L25","v":3.9289715335169881},0.42500000000000004]
["Mexican Hat","Ratibida columnifera","X",null,"X",null,"Red","Mid",10,"P",20,0.8,600000,0.5,300000,{"$f":"O26/43560","v":6.887052341597796},{"$f":"P26*L26","v":5.5096418732782375},10]
["Gooseberry-leaf Globemallow","Sphaeralcea grossulariifolia ","X","X","X",null,"Orange","Mid",8,"P",75,0.91,335000,0.25,83750,{"$f":"O27/43560","v":1.9226354453627181},{"$f":"P27*L27","v":1.7495982552800735},18.75]
["Rubber Rabbitbrush","Chrysothamnus nauseosus","X",null,"X","X","Yellow","Mid",10,"P",35,0.12,756000,0.75,567000,13.016528925619834,{"$f":"L28*P28","v":1.5619834710743801},26.25]
["Indian Ricegrass","Achnatherum hymenoides","X","n/a","n/a","n/a","grass","Mid",9,"P",7.5,0.88,162000,1,162000,3.71900826446281,3.2727272727272729,7.5]
["Bottlebrush Squirreltail","Elymus elymoides","X","n/a","n/a","n/a","grass","Short",8,"P",20,0.72,192000,0.5,96000,2.2038567493112948,{"$f":"P30*L30","v":1.5867768595041323},10]
[null,null,null,null,null,null,null,null,null,null,null,null,null,{"$f":"SUM(N19:N30)","v":8.0500000000000007},2838950,65.173324150596869,43.687522956841143,{"$f":"SUM(R19:R30)","v":222.42500000000001}]
[]
["Northern Utah Mix (10\"-14\" precipitation)"]
["Lewis Flax","Linum lewisii","X","X","X",null,"Lt. Blue","Mid",10,"P",20,0.81,286000,1.5,{"$f":"N34*M34","v":429000},{"$f":"O34/43560","v":9.8484848484848477},{"$f":"P34*L34","v":7.9772727272727275},{"$f":"K34*N34","v":30}]
["Firecracker Penstemon","Penstemon eatonii","X","X","X",null,"Red","Long",10,"P",72,0.76,600000,0.25,150000,3.443526170798898,{"$f":"P35*L35","v":2.6170798898071626},18]
["Rocky Mtn Beeplant","Cleome serrulata","X",null,"X","X","Pink","Annual",10,"A",20,0.81,66000,2,132000,3.0303030303030303,{"$f":"P36*L36","v":2.4545454545454546},40]
["Scarlet Gilia","Ipomopsis aggregata","X",null,"X",null,"Red","Mid",10,"P",125,0.88,200000,0.25,50000,1.1478420569329659,1.0101010101010099,31.25]
["Western Yarrow","Achillea millefolium occidentalis","X","X","X","X","White","Mid",10,"P",22,0.83,4124000,0.15,618600,14.201101928374655,11.786914600550963,3.3]
["Common Sunflower","Helianthus annuus","X",null,"X","X","Yellow","Annual",10,"A",16,0.64,60000,2.5,150000,3.443526170798898,{"$f":"P39*L39","v":2.2038567493112948},40]
["Alfalfa (Ladak)","Medicago sativa",null,"X","X","X","Purple","Long",8,"P",2.25,0.83,225000,1,225000,5.1652892561983474,4.2871900826446279,2.25]
["Gooseberry-leaf Globemallow","Sphaeralcea grossulariifolia ","X","X","X",null,"Orange","Mid",8,"P",75,0.91,335000,0.25,{"$f":"N41*M41","v":83750},{"$f":"O41/43560","v":1.9226354453627181},1.7495982552800735,{"$f":"K41*N41","v":18.75}]
["Rubber Rabbitbrush","Chrysothamnus nauseosus","X",null,"X","X","Yellow","Mid",10,"P",35,0.12,756000,0.75,{"$f":"N42*M42","v":567000},{"$f":"O42/43560","v":13.016528925619834},{"$f":"P42*L42","v":1.5619834710743801},{"$f":"K42*N42","v":26.25}]
["Bottlebrush Squirreltail","Elymus elymoides","X","n/a","n/a","n/a","grass","Short",8,"P",20,0.72,192000,0.75,144000,3.3057851239669422,{"$f":"P43*L43","v":2.3801652892561984},15]
["Bluebunch Wheatgrass","Pseudoroegneria spicata","X","n/a","n/a","n/a","grass","Long",8,"P",6,0.77,126000,1.5,189000,4.338842975206612,{"$f":"P44*L44","v":3.3409090909090913},9]
[null,null,null,null,null,null,null,null,null,null,null,null,null,{"$f":"SUM(N34:N44)","v":10.9},2738350,62.863865932047752,41.369616620752986,{"$f":"SUM(R34:R44)","v":233.8}]
[]
[null,"Spring = April 1 - June 15",null,"Spring Bloom",null,null,"Bloom Ending in Summer"]
[null,"Summer = June 15 - August 1",null,"Late Spring Bloom",null,null,"Fall Bloom"]
[null,"Fall = August 1 - October 31",null,"Summer Bloom",null,null,"Bloom Ending in Early Fall"]

{"sheet":"Seed Vendors","index":6,"n_rows":3,"n_cols":2,"rows_kept":3,"cut":false,"hidden":false,"merged":[]}
["See:"]
["Aberdeen PMC TN 33 (below)","http://www.nrcs.usda.gov/Internet/FSE_PLANTMATERIALS/publications/idpmctn5853.pdf"]
["Native Seed Network","http://www.nativeseednetwork.org/ecomap?state=UT"]